Cogmind - Beta 16 @@@ ROGUE MODE // 2025.10.21 @ 23:00:01 Player: szymekc Result: Destroyed by H-66 Slayer with Gauss Rifle Performance ------------- Evolutions (4) 2000 Regions Visited (13) 2600 Robots Destroyed (217) 1085 Value Destroyed (6058) 6058 Prototype IDs (33) 660 Alien Tech Used (0) 0 Bonus (1514) 1514 TOTAL SCORE: 13917 Bonus ------- High Alert Combat Kills 525 Follower Combat Kills 1498 Network Hubs Disabled 800 Registered with UFD 300 Met Optimus in HQ 500 Built Enhanced Grunts 300 A7 Reached Mainframe 300 Met R17 at Cetus 500 Friendly Fire -3209 Cogmind --------- Core Integrity 0/850 Matter 300/300 Energy 91/100 System Corruption 2% Temperature Cool (13) Movement Flying (32) Location -6/Hub_04(d) Parts ------- > --- POWER (1) -------- (None) > --- PROPULSION (5) --- Cooled Cesium-ion Thruster Cooled Cesium-ion Thruster Cooled Cesium-ion Thruster > --- UTILITY (7) ------ Medium Storage Unit Advanced Gravity Neutralizer Enhanced Optical Array Advanced Signal Interpreter Improved Hacking Suite Advanced System Shield > --- WEAPON (2) ------- Shock Maul > --- INVENTORY (10) --- Micro Antimatter Reactor Advanced Sensor Array ECM Suite Medium Regenerative Plating Advanced Hacking Suite Advanced KE Penetrator Advanced KE Penetrator Junk Cannon (6) Phasing Sabre Peak State ------------ > --- POWER ------------ Compact Particle Reactor > --- PROPULSION ------- Improved Cesium-ion Thruster Cooled Cesium-ion Thruster Cooled Cesium-ion Thruster Cooled Cesium-ion Thruster Cooled Cesium-ion Thruster > --- UTILITY ---------- Medium Storage Unit Advanced Gravity Neutralizer Enhanced Optical Array Advanced Sensor Array Advanced Signal Interpreter Improved Hacking Suite Advanced System Shield > --- WEAPON ----------- Shock Maul Phasing Sabre > --- INVENTORY -------- Micro Antimatter Reactor ECM Suite Medium Regenerative Plating Advanced Hacking Suite Advanced KE Penetrator Advanced KE Penetrator Junk Cannon [Rating: 90] Favorites ----------- Power Improved Ion Engine Engine Improved Ion Engine Power Core Light Fission Core Reactor Compact Particle Reactor Propulsion Light Treads Treads Light Treads Leg Armored Leg Wheel Wheel Hover Unit Gravmag System Flight Unit Cooled Cesium-ion Thruster Utility Enhanced Optical Array Device Cooling System Storage Large Storage Unit Processor Enhanced Optical Array Hackware Hacking Suite Protection Medium Armor Plating Weapon Advanced Beam Cannon Energy Gun Improved EM Shotgun Energy Cannon Advanced Beam Cannon Ballistic Gun Assault Rifle Ballistic Cannon Light Cannon Launcher Missile Launcher Special Weapon Junk Cannon Impact Weapon Shock Maul Slashing Weapon Phasing Sabre Build | -11 -10 -10 -9 -9 -9 -9 -6 -6 -6 -6 -6 -6 -6 ------- Run | Yrd Mat Min Mat Sto Rec Scr Fac Was Fac Ext Cet Arc Hub Slots Evolved 8 | . . . 2 . . . 6 . . . . . . Power . | . . . . . . . . . . . . . . Propulsion 3 | . . . 1 . . . 2 . . . . . . Utility 5 | . . . 1 . . . 4 . . . . . . Weapon . | . . . . . . . . . . . . . . Parts Attached 168 | 8 9 9 31 21 2 4 32 2 28 10 6 4 2 Power 19 | 1 1 1 3 2 . . 4 . 5 1 1 . . Engine 10 | 1 1 1 3 2 . . 1 . 1 . . . . Core 7 | . . . . . . . 2 . 4 1 . . . Reactor 2 | . . . . . . . 1 . . . 1 . . Propulsion 47 | 2 . 3 8 12 1 . 11 1 8 1 . . . Treads 25 | 2 . 2 8 12 1 . . . . . . . . Leg 2 | . . . . . . . 1 . 1 . . . . Wheel 1 | . . 1 . . . . . . . . . . . Hover 5 | . . . . . . . 3 1 1 . . . . Flight 14 | . . . . . . . 7 . 6 1 . . . Utility 58 | 2 2 2 7 3 1 1 12 1 12 5 4 4 2 Device 27 | 2 1 2 3 2 . . 5 1 7 . 2 1 1 Storage 5 | . 1 . 1 . 1 . 1 . 1 . . . . Processor 8 | . . . . . . 1 3 . 3 1 . . . Hackware 9 | . . . . . . . 3 . 1 1 . 3 1 Protection 9 | . . . 3 1 . . . . . 3 2 . . Artifact . | . . . . . . . . . . . . . . Weapon 44 | 3 6 3 13 4 . 3 5 . 3 3 1 . . Energy Gun 7 | 1 . . 4 1 . 1 . . . . . . . Energy Cannon 7 | . 1 . 3 3 . . . . . . . . . Ballistic Gun 14 | 2 3 2 5 . . . . . 1 . 1 . . Ballistic Cannon 1 | . 1 . . . . . . . . . . . . Launcher 5 | . 1 1 1 . . . 1 . . 1 . . . Special Weapon 4 | . . . . . . 2 1 . . 1 . . . Impact Weapon 2 | . . . . . . . 1 . 1 . . . . Slashing Weapon 4 | . . . . . . . 2 . 1 1 . . . Piercing Weapon . | . . . . . . . . . . . . . . Special Melee Weapon . | . . . . . . . . . . . . . . Unidentified Prototypes 22 | . . . 3 2 . 1 6 2 3 . 5 . . Parts Lost 27 | . . 4 2 3 . . 7 . 6 . . . 5 Power 2 | . . 1 . . . . . . . . . . 1 Propulsion 12 | . . 1 1 . . . 4 . 3 . . . 3 Utility 9 | . . 1 1 2 . . 2 . 2 . . . 1 Weapon 4 | . . 1 . 1 . . 1 . 1 . . . . Highest Loss Streak 3 | . . 1 1 2 . . 3 . 2 . . . 2 To Critical Strikes . | . . . . . . . . . . . . . . Average Backups 11 | 2 12 14 13 13 14 17 5 4 5 7 8 9 7 Power . | . . . . . . . . . . . . 1 1 Propulsion 2 | . . 1 2 4 4 5 . . . 1 1 1 . Utility 3 | . 2 4 5 3 3 4 1 1 1 2 3 4 3 Weapon 4 | 1 8 6 5 5 6 5 2 2 2 2 3 3 3 Tool/Special . | . . . . . . . . . . . . . . Unused Backups 33 | . 2 5 9 3 1 4 . . 2 . 3 . 4 Power 4 | . 2 . 1 . . . . . . . . . 1 Propulsion 5 | . . 1 . . 1 2 . . 1 . . . . Utility 8 | . . . 2 . . . . . 1 . 3 . 2 Weapon 15 | . . 3 6 3 . 2 . . . . . . 1 Tool/Special 1 | . . 1 . . . . . . . . . . . Average Slot Usage (%) 92 | . 100 100 99 98 98 68 85 94 92 99 100 99 97 Engine 8 | . 14 14 11 11 11 11 2 . . . . . . Core 1 | . . . . . . . 3 6 5 6 4 . . Treads 21 | . 28 27 32 33 33 33 . . . . . . . Flight 8 | . . . . . . . 20 13 23 32 33 33 31 Device 11 | . 15 14 10 13 22 3 16 16 9 6 6 8 12 Storage 9 | . 12 14 11 11 11 11 2 . 4 6 6 6 6 Processor 8 | . . . . . . 9 17 13 20 25 26 18 13 Hackware 1 | . . . . . . . 6 13 9 . . 5 13 Protection 2 | . . . 10 6 . . . . . 5 6 5 . Energy Cannon 5 | . 6 . 7 20 20 . . . . . . . . Ballistic Gun 5 | . 15 26 13 1 . . . . . . . . . Impact Weapon 1 | . . . . . . . 1 6 7 6 6 6 6 Slashing Weapon 1 | . . . . . . . 5 6 1 4 6 6 5 Peak Build Rating 90 | 9 9 11 19 23 20 29 56 67 82 81 89 89 90 Average Rating 32 | 4 7 9 16 20 19 17 48 64 65 76 79 88 87 On Entrance 39 | . 9 8 11 18 20 15 17 52 67 80 76 89 87 Avg Prop Armor Cover (%) 9 | . . 11 . . . . 7 19 14 . . . 2 Naked Turns . | . . . . . . . . . . . . . . Heaviest Build 61 | 7 32 31 44 45 59 61 34 19 25 36 37 39 30 Greatest Support 63 | 40 40 40 60 63 60 60 27 19 33 30 45 45 45 Greatest Overweight (x) 4 | . . 2 1 . . 1 4 . . 1 1 . 1 Average Overweight (x) . | . . . . . . . . . . . . . . Largest Inventory Capacity 20 | 5 15 15 15 15 20 20 20 5 10 10 10 10 10 Average Capacity 13 | 5 14 15 15 15 18 20 6 5 9 10 10 10 10 Most Carried 20 | 4 15 15 15 15 17 20 20 5 10 10 10 10 10 Average Carried 12 | 2 12 14 14 14 15 18 6 5 7 9 9 10 8 Final Capacity 20 | 5 15 15 15 15 20 20 5 5 10 10 10 10 10 Final Carried 18 | 4 15 15 15 15 17 18 5 5 10 10 10 10 10 Class Distribution -------------------- 40% | Scavenger-Mutant 27% | Mutant 9% | Commander-Sprinter 8% | Scout 6% | Hacker-Scout Dominant Class ---------------- Mutant | -10/Materials Scavenger-Mutant | -10/Mines Scavenger-Mutant | -9/Materials Mutant | -9/Storage Scavenger-Mutant | -9/Recycling Scavenger-Mutant | -9/Scraptown Scout | -6/Factory Scout | -6/Waste Scout | -6/Factory Commander-Sprinter | -6/Extension Commander-Sprinter | -6/Cetus Commander-Sprinter | -6/Archives Hacker-Scout | -6/Hub_04(d) Resources | -11 -10 -10 -9 -9 -9 -9 -6 -6 -6 -6 -6 -6 -6 ----------- Run | Yrd Mat Min Mat Sto Rec Scr Fac Was Fac Ext Cet Arc Hub Matter Collected 4101 | 322 554 307 742 450 66 40 486 . 513 396 135 50 40 Remotely . | . . . . . . . . . . . . . . Salvage Created 8951 | 198 536 399 1458 1800 490 . 871 . 1365 877 97 279 581 Parts 438 | 14 39 30 106 94 20 . 33 . 26 32 17 19 8 Haulers Intercepted 24 | . 2 . 5 6 . . 3 . 4 1 . . 3 Recyclers Shooed 5 | 1 . . . 2 2 . . . . . . . . Parts Field Recycled . | . . . . . . . . . . . . . . Retrieved Matter . | . . . . . . . . . . . . . . Parts Self-Destructed . | . . . . . . . . . . . . . . Prevented . | . . . . . . . . . . . . . . Parts Restored . | . . . . . . . . . . . . . . Kills | -11 -10 -10 -9 -9 -9 -9 -6 -6 -6 -6 -6 -6 -6 ------- Run | Yrd Mat Min Mat Sto Rec Scr Fac Was Fac Ext Cet Arc Hub Combat Hostiles Destroyed 127 | . 13 13 27 34 3 . 5 . 11 17 . 1 3 Melee 17 | . . . . . . . 3 . 6 6 . 1 1 Guns 37 | . 10 9 16 1 . . . . 1 . . . . Cannons 37 | . 3 1 5 23 3 . 1 . . 1 . . . AOE 22 | . . 3 4 9 . . . . . 6 . . . Classes Destroyed 13 | 2 7 1 1 . . . 1 . . 1 . . . Worker 6 | . 1 1 2 1 . . . . . . . . 1 Builder 2 | . 1 . . 1 . . . . . . . . . Tunneler 7 | 5 . . 2 . . . . . . . . . . Hauler 24 | . 2 . 5 6 . . 3 . 4 1 . . 3 Recycler 13 | 1 . . 1 3 4 . 2 . 2 . . . . Mechanic 1 | . . . . . . . . . . 1 . . . Operator 19 | . 1 . 1 . . . 1 . 4 2 . 6 4 Watcher 16 | . 2 . 5 1 . . 2 . 3 . 1 . 2 Swarmer 33 | . 6 6 10 5 . . . . . 6 . . . Grunt 58 | . 7 6 11 17 . . 2 . 9 4 . . 2 Duelist 3 | . . . 1 2 . . . . . . . . . Sentry 30 | . . 1 6 10 3 . . . 1 7 . 1 1 Programmer 4 | . . . . . . . 3 . 1 . . . . Best Kill Streak 7 | 4 3 3 5 7 5 . 2 . 5 5 1 4 5 Combat Bots Only 6 | . 3 3 4 6 1 . 2 . 3 4 . 1 1 Max Kills in Single Turn 3 | 2 1 3 3 3 1 . 1 . 1 3 1 1 1 Gunslinging 1 | . . . 1 . . . . . . . . . . Exploded 3 | . . 3 3 2 . . . . . 3 . . . Melee 1 | . . . . . . . 1 . 1 1 . 1 1 Uniques/NPCs Destroyed 1 | . . . . . . . . . . . 1 . . A7 (-6/Cetus) Combat | -11 -10 -10 -9 -9 -9 -9 -6 -6 -6 -6 -6 -6 -6 -------- Run | Yrd Mat Min Mat Sto Rec Scr Fac Was Fac Ext Cet Arc Hub Hostile Shots Fired 688 | . 57 56 118 102 . . 100 . 137 87 1 1 29 Missed 249 | . 16 11 36 26 . . 46 . 67 38 1 1 7 Hits 439 | . 41 45 82 76 . . 54 . 70 49 . . 22 Melee 2 | . . . . 2 . . . . . . . . . Projectile 437 | . 41 45 82 74 . . 54 . 70 49 . . 22 Critical Strikes 11 | . 1 2 4 2 . . . . 2 . . . . Damage Taken 5538 | . 432 509 1050 939 . . 780 . 755 508 28 . 537 Core 1193 | . 56 106 127 46 . . 345 . 167 153 28 . 165 Absorbed by Shields 279 | . . . 189 85 . . . . . 5 . . . Regen/Repaired (Parts) 176 | . . . . . . . 35 . . 15 37 89 . Core Remaining (%) 63 | 100 . 35 . . . 56 . . . . . . . Volleys Fired 313 | 16 50 33 89 86 10 . 4 . 9 16 . . . Largest 2 | 2 2 2 2 2 2 . 1 . 1 1 . . . Hottest 136 | 40 90 90 112 136 136 . 5 . 33 36 . . . Shots Fired 574 | 32 99 65 165 163 21 . 4 . 9 16 . . . Gun 281 | 32 66 49 117 8 . . . . 9 . . . . Cannon 263 | . 32 15 47 148 21 . . . . . . . . Launcher 17 | . 1 1 1 7 . . . . . 7 . . . Special 13 | . . . . . . . 4 . . 9 . . . Kinetic 301 | 32 82 59 111 8 . . . . 9 . . . . Thermal 207 | . 16 5 17 148 21 . . . . . . . . Explosive 17 | . 1 1 1 7 . . . . . 7 . . . Electromagnetic 36 | . . . 36 . . . . . . . . . . Impact 11 | . . . . . . . 3 . . 8 . . . Robot Hit Streak 20 | 5 13 15 12 12 5 . 3 . 11 20 . . . Robot Miss Streak 5 | 3 5 5 4 3 2 . 1 . . . . . . Penetration Max . | . . . . . . . . . . . . . . Secondary Targets 2 | . . . 2 . . . . . . . . . . Max Gunslinging Chain 1 | . . . 1 . . . . . . . . . . Shots Hit Robots 482 | 19 57 37 115 86 12 . 23 . 53 40 13 12 15 Core Hits 223 | 9 25 22 57 52 7 . 9 . 11 18 4 5 4 Critical Kills 9 | . . . 2 1 . . . . 4 . . . 2 Critical Parts Destroyed 22 | . . . 1 . . . . . 13 6 . . 2 Critical Strikes 38 | . 3 . 3 1 . . 1 . 18 8 . . 4 Meltdown 2 | . . . 1 1 . . . . . . . . . Destroy 6 | . . . 2 . . . . . 4 . . . . Blast 3 | . 3 . . . . . . . . . . . . Smash 24 | . . . . . . . . . 13 7 . . 4 Sever 3 | . . . . . . . 1 . 1 1 . . . Melee Attacks 236 | . . . . . . . 48 . 93 34 16 14 31 Impact 142 | . . . . . . . 9 . 88 21 2 2 20 Slashing 94 | . . . . . . . 39 . 5 13 14 12 11 Piercing . | . . . . . . . . . . . . . . Sneak Attacks 54 | . . . . . . . 6 . 10 10 12 6 10 Combat Hostiles 10 | . . . . . . . . . 2 5 . . 3 Follow-up Attacks 9 | . . . . . . . . . 5 2 1 . 1 Damage Inflicted 18368 | 186 816 640 2250 2885 289 . 1408 . 3274 3226 957 1027 1410 Guns 2513 | 186 489 387 1284 110 . . . . 57 . . . . Cannons 3140 | . 322 133 657 1739 289 . . . . . . . . Explosions 1753 | . . 116 286 1013 . . . . . 338 . . . Melee 10283 | . . . . . . . 1258 . 3217 2414 957 1027 1410 Ramming 55 | . 5 4 23 23 . . . . . . . . . Kinetic 2773 | 186 739 469 1212 110 . . . . 57 . . . . Thermal 2511 | . 72 51 360 1739 289 . . . . . . . . Explosive 1640 | . . 116 173 1013 . . . . . 338 . . . Electromagnetic 482 | . . . 482 . . . . . . . . . . Impact 6744 | . . . . . . . 430 . 3044 2100 . . 1170 Slashing 4163 | . . . . . . . 978 . 173 788 957 1027 240 Piercing . | . . . . . . . . . . . . . . Highest Corruption 13 | . . . 5 5 5 . 6 12 13 8 4 4 2 Average Corruption 6 | . . . 5 5 5 . 5 9 11 4 4 3 1 Corruption Purged 13 | . . . . . . . . . 5 4 . 4 . Corruption Blocked . | . . . . . . . . . . . . . . Effects 159 | . . . 11 38 23 . 11 2 42 24 5 3 . Message Errors 31 | . . . 1 8 3 . 2 . 9 5 2 1 . Matter Fused 34 | . . . 6 6 2 . 4 . 8 6 2 . . Heat Flow Errors 21 | . . . . 3 4 . 1 . 5 6 1 1 . Energy Discharges 21 | . . . 1 4 6 . 2 . 5 3 . . . Parts Rejected 2 | . . . . . . . . 1 1 . . . . Parts Fused 2 | . . . . . . . 1 . 1 . . . . Data Loss (minor) 27 | . . . 2 9 5 . 1 . 7 2 . 1 . Data Loss (major) 5 | . . . . 1 2 . . . . 2 . . . Misfires 3 | . . . . 2 1 . . . . . . . . Alerts 4 | . . . . 3 . . . . 1 . . . . Misdirections 6 | . . . . . . . . 1 5 . . . . Weapon Failures 3 | . . . 1 2 . . . . . . . . . Overload Shots . | . . . . . . . . . . . . . . Overflow Damage 3011 | . . . 48 40 . . 166 . 1164 709 . 312 572 Projectiles 66 | . . . 7 20 . . 12 . . 27 . . . Explosions 71 | . . . 41 20 . . . . . 10 . . . Melee 2874 | . . . . . . . 154 . 1164 672 . 312 572 Knockbacks 27 | . 2 2 . . . . 4 . 11 3 . . 5 Impact 21 | . . . . . . . 3 . 11 2 . . 5 Kinetic 4 | . 2 2 . . . . . . . . . . . Secondary 2 | . . . . . . . 1 . . 1 . . . Self-Inflicted Damage 101 | . . . 27 55 . . . . . 19 . . . Shots 4 | . . . 1 2 . . . . . 1 . . . Rammed 15 | . 2 1 5 7 . . . . . . . . . Targets Rammed 17 | . 3 1 6 7 . . . . . . . . . Kicked . | . . . . . . . . . . . . . . Crushed 2 | . 1 . 1 . . . . . . . . . . Highest Temperature 279 | . 132 192 254 195 239 . 183 . 279 259 152 169 2 Average Temperature 51 | . 43 96 63 14 32 . 100 . 93 76 64 59 2 Received Heat Transfer 1699 | . 162 258 335 353 . . 78 . 300 117 . . 96 Effects 1 | . . . . . . . . . 1 . . . . Energy Bleed 1 | . . . . . . . . . 1 . . . . Siege Activations . | . . . . . . . . . . . . . . Martial Activations . | . . . . . . . . . . . . . . Shielding Activations . | . . . . . . . . . . . . . . Robots Disrupted . | . . . . . . . . . . . . . . Combat Hostiles . | . . . . . . . . . . . . . . Robots Corrupted 20 | . . . 1 . . . 2 . 8 4 . . 5 Combat Hostiles 12 | . . . 1 . . . 1 . 4 4 . . 2 Parts Fried 53 | . . . 4 . . . 5 . 24 6 . . 14 Impact Corruptions 65 | . . . . . . . 2 . 31 15 . . 17 Robots Melted 2 | . . . 1 1 . . . . . . . . . Combat Hostiles 2 | . . . 1 1 . . . . . . . . . Parts Melted 11 | . . . 3 8 . . . . . . . . . Heat Transferred 4479 | . 148 111 668 3034 518 . . . . . . . . Parts Sabotaged . | . . . . . . . . . . . . . . Parts Stolen . | . . . . . . . . . . . . . . Parts Stripped . | . . . . . . . . . . . . . . Power Chain Reactions 3 | . . . 3 . . . . . . . . . . Alert | -11 -10 -10 -9 -9 -9 -9 -6 -6 -6 -6 -6 -6 -6 ------- Run | Yrd Mat Min Mat Sto Rec Scr Fac Was Fac Ext Cet Arc Hub Maximum Alert Level 4 | . . . 2 4 1 . . . . 2 2 1 2 Low Security (%) 57 | 100 100 100 36 . 56 . 100 100 100 32 . 5 8 Level 1 21 | . . . 35 28 43 . . . . 45 1 94 28 Level 2 12 | . . . 28 5 . . . . . 21 98 . 62 Level 3 8 | . . . . 63 . . . . . . . . . Level 4 . | . . . . 2 . . . . . . . . . Level 5 . | . . . . . . . . . . . . . . High Security . | . . . . . . . . . . . . . . Max Security . | . . . . . . . . . . . . . . Peak Influence 1106 | 20 75 130 580 1106 283 . 107 19 116 666 518 365 524 Initial 359 | . . 3 5 237 283 . . 19 6 50 359 175 106 Average 245 | 3 31 61 291 713 199 . 40 14 64 288 472 315 399 Influence Increases 7231 | 30 450 370 1111 1342 243 . 434 . 644 1120 359 280 848 Destroy 0b10 Robot/C 3100 | . 260 260 620 680 60 . 100 . 220 560 160 80 100 Destroy 0b10 Robot/NC 455 | 30 35 5 80 60 20 . 40 . 65 25 10 30 55 Destroy Leader 714 | . 68 50 200 204 . . 40 . 54 60 . . 38 Allied During Kill 774 | . . . 34 . . . . . 6 338 170 110 116 Successful Hack 365 | . 19 . 35 28 43 . 24 . 110 43 9 . 54 Select Force Hacks 390 | . 30 . 30 60 120 . . . . . . . 150 Disable Machine 270 | . 15 15 60 45 . . 60 . 30 15 . 15 15 Anti-Garrison Action 400 | . . . . 200 . . . . . . . . 200 Destroy Structure 223 | . 8 10 22 50 . . 20 . 39 49 10 . 15 Partial Spotted 225 | . . . . . . . 30 . 60 30 . 45 60 Lose Combat Pursuer 315 | . 15 30 30 15 . . 120 . 60 . . . 45 Influence Decreases 6777 | 30 441 363 565 1177 842 128 378 47 550 581 563 413 699 Entered New Map 1752 | . . 6 11 325 444 128 . 37 3 53 283 263 199 Time Decay 3855 | 30 441 327 494 522 398 . 328 10 427 428 160 110 180 Lost Part 230 | . . 30 20 30 . . 40 . 60 . . . 50 Lost Ally 490 | . . . 40 . . . 10 . 60 100 120 40 120 Purge Threat 450 | . . . . 300 . . . . . . . . 150 Squads Dispatched 47 | . 3 . 4 9 . . 6 . 13 3 . . 9 Investigation 20 | . 1 . 1 3 . . 2 . 6 1 . . 6 Extermination 5 | . . . . . . . 2 . 3 . . . . Reinforcement 19 | . 2 . 3 3 . . 2 . 4 2 . . 3 Assault 2 | . . . . 2 . . . . . . . . . Garrison 1 | . . . . 1 . . . . . . . . . Intercept . | . . . . . . . . . . . . . . Searches Triggered . | . . . . . . . . . . . . . . Construction Impeded 1 | . . . . 1 . . . . . . . . . Haulers Reinforced 4 | . . . . . . . 1 . 2 . . . 1 Active Scanning Responses . | . . . . . . . . . . . . . . Cargo Convoy Interrupts . | . . . . . . . . . . . . . . Stealth | -11 -10 -10 -9 -9 -9 -9 -6 -6 -6 -6 -6 -6 -6 --------- Run | Yrd Mat Min Mat Sto Rec Scr Fac Was Fac Ext Cet Arc Hub Distress Signals 8 | . 1 . 1 . . . 1 . 1 1 2 . 1 Communications Jammed . | . . . . . . . . . . . . . . Distress Signals . | . . . . . . . . . . . . . . Times Spotted 246 | . 25 15 42 44 1 . 26 4 24 22 8 8 27 Peak Tracking Total 13 | . 3 3 6 6 . . 5 5 5 5 5 2 13 Tactical Retreats 14 | . 1 1 2 1 . . 4 . 4 . . . 1 Traps | -11 -10 -10 -9 -9 -9 -9 -6 -6 -6 -6 -6 -6 -6 ------- Run | Yrd Mat Min Mat Sto Rec Scr Fac Was Fac Ext Cet Arc Hub Traps Triggered 13 | . . . . . . . 6 . 3 4 . . . Indirectly . | . . . . . . . . . . . . . . Trap Hack Attempts . | . . . . . . . . . . . . . . Triggered . | . . . . . . . . . . . . . . Disarmed . | . . . . . . . . . . . . . . Reprogrammed . | . . . . . . . . . . . . . . Reused . | . . . . . . . . . . . . . . Traps Extracted . | . . . . . . . . . . . . . . Installed . | . . . . . . . . . . . . . . Triggered . | . . . . . . . . . . . . . . Machines | -11 -10 -10 -9 -9 -9 -9 -6 -6 -6 -6 -6 -6 -6 ---------- Run | Yrd Mat Min Mat Sto Rec Scr Fac Was Fac Ext Cet Arc Hub Machines Disabled 20 | . 1 1 4 3 . . 4 . 2 3 . 1 1 Max in Single Turn 1 | . 1 1 1 1 . . 1 . 1 1 . . 1 Garrison Access 6 | . . . . 1 . . 2 . 1 . . . 2 Network Hub 4 | . . . . . . . . . . . . . 4 Machines Repaired . | . . . . . . . . . . . . . . Machines Dismantled . | . . . . . . . . . . . . . . Machines Sabotaged 3 | . . . . . . . . . . . . . 3 Overloaded Fab Kills . | . . . . . . . . . . . . . . Hacking | -11 -10 -10 -9 -9 -9 -9 -6 -6 -6 -6 -6 -6 -6 --------- Run | Yrd Mat Min Mat Sto Rec Scr Fac Was Fac Ext Cet Arc Hub Machines Accessed 93 | . 6 1 7 10 10 5 16 . 18 10 1 . 9 Terminals 53 | . 5 . 4 7 6 . 8 . 7 8 1 . 7 Fabricators 5 | . . . . . . . 2 . 3 . . . . Repair Stations 2 | . . . . . . . 1 . . 1 . . . Recycling Units 15 | . 1 . 1 2 4 . 1 . 5 1 . . . Scanalyzers 6 | . . . 2 . . . 2 . 2 . . . . Garrison Access 6 | . . . . 1 . . 2 . 1 . . . 2 Total Hacks 249 | . 21 1 15 29 28 24 32 . 53 19 2 . 25 Successful 148 | . 12 1 8 15 14 24 15 . 36 11 1 . 11 Failed 100 | . 9 . 6 14 14 . 17 . 17 8 1 . 14 Catastrophic 15 | . . . 2 1 1 . 4 . 2 2 1 . 2 Database Lockouts 1 | . . . 1 . . . . . . . . . . Manual 117 | . 17 . 10 13 22 . 15 . 25 5 1 . 9 Terminals 151 | . 19 . 11 22 21 . 17 . 24 12 2 . 23 Fabricators 13 | . . . . . . . 5 . 8 . . . . Repair Stations 8 | . . . . . . . 2 . . 6 . . . Recycling Units 28 | . 2 . 1 4 7 . 1 . 12 1 . . . Scanalyzers 14 | . . . 3 . . . 3 . 8 . . . . Garrison Access 10 | . . . . 3 . . 4 . 1 . . . 2 Terminal Hacks 66 | . 5 1 4 6 4 24 2 . 10 4 1 . 5 Record 18 | . . . . . . 18 . . . . . . . Robot Analysis 8 | . 2 . . . . 6 . . . . . . . Prototype ID Bank 7 | . 2 . 1 1 1 . . . 1 1 . . . Open Door 8 | . . 1 . 2 . . . . 1 3 1 . . Level Access Points 1 | . . . . . . . . . . . . . 1 Branch Access Points 3 | . . . 1 . . . 1 . 1 . . . . Emergency Access Points 5 | . . . 1 . . . 1 . 2 . . . 1 Terminal Index 1 | . . . . . 1 . . . . . . . . Unreport Threat 3 | . . . . 2 . . . . . . . . 1 Locate Traps 2 | . 1 . . . . . . . 1 . . . . Transport Status 2 | . . . . . . . . . 2 . . . . Hauler Manifests 4 | . . . 1 . 1 . . . 2 . . . . Registered Components 1 | . . . . . 1 . . . . . . . . Zone Layout 3 | . . . . 1 . . . . . . . . 2 Fabricator Hacks 4 | . . . . . . . 2 . 2 . . . . Network Status 3 | . . . . . . . 2 . 1 . . . . Load Schematic 1 | . . . . . . . . . 1 . . . . Repair Station Hacks 6 | . . . . . . . 2 . . 4 . . . Scan Component 4 | . . . . . . . 1 . . 3 . . . Repair 2 | . . . . . . . 1 . . 1 . . . Recycling Unit Hacks 7 | . 1 . . 1 . . 1 . 3 1 . . . Retrieve Components 7 | . 1 . . 1 . . 1 . 3 1 . . . Scanalyzer 11 | . . . 2 . . . 2 . 7 . . . . Insert Component 3 | . . . . . . . . . 3 . . . . Analyze 3 | . . . . . . . . . 3 . . . . Retrieve Study 5 | . . . 2 . . . 2 . 1 . . . . Garrison Access Hacks 4 | . . . . . . . 2 . 1 . . . 1 Seal Access 4 | . . . . . . . 2 . 1 . . . 1 Unauthorized Hacks 50 | . 6 . 2 8 10 . 4 . 13 2 . . 5 Terminals 31 | . 5 . 1 5 6 . 3 . 5 2 . . 4 Assimilate 1 | . . . . . . . 1 . . . . . . Botnet 5 | . 1 . . . 1 . 1 . 1 . . . 1 Disrupt 1 | . . . . . . . 1 . . . . . . Operators 1 | . 1 . . . . . . . . . . . . Skim 20 | . 3 . 1 5 5 . . . 4 2 . . . Sabotage 3 | . . . . . . . . . . . . . 3 Fabricators 3 | . . . . . . . 1 . 2 . . . . Liberate 1 | . . . . . . . . . 1 . . . . Haulers 2 | . . . . . . . 1 . 1 . . . . Repair Stations . | . . . . . . . . . . . . . . Recycling Units 14 | . 1 . 1 2 4 . . . 6 . . . . Reject 2 | . . . . . . . . . 2 . . . . Mask 1 | . . . . . . . . . 1 . . . . Tunnel 8 | . 1 . 1 2 4 . . . . . . . . Fedlink 3 | . . . . . . . . . 3 . . . . Scanalyzers . | . . . . . . . . . . . . . . Garrison Access 2 | . . . . 1 . . . . . . . . 1 Jam 2 | . . . . 1 . . . . . . . . 1 Data Cores Recovered 4 | . . . . . . . . . 2 . . . 2 Used 2 | . . . . . . . . . . . . . 2 Hacking Detections 61 | . 6 . 4 7 6 . 13 . 13 6 . . 6 Full Trace Events 5 | . . . . . . . 1 . 2 1 . . 1 Feedback Events 1 | . . . . . . . . . 1 . . . . Hackware Fried 1 | . . . . . . . . . 1 . . . . Feedback Blocked . | . . . . . . . . . . . . . . Robot Schematics Acquired . | . . . . . . . . . . . . . . Robots Built . | . . . . . . . . . . . . . . Authchips . | . . . . . . . . . . . . . . Time . | . . . . . . . . . . . . . . Total Robot Build Rating . | . . . . . . . . . . . . . . Part Schematics Acquired 3 | . . . . . . . . . 3 . . . . Parts Built . | . . . . . . . . . . . . . . Authchips . | . . . . . . . . . . . . . . Time . | . . . . . . . . . . . . . . Total Part Build Rating . | . . . . . . . . . . . . . . Part Studies Acquired 5 | . . . 2 . . . 2 . 1 . . . . Parts Repaired 2 | . . . . . . . 1 . . 1 . . . Time 131 | . . . . . . . 51 . . 80 . . . Parts Recycled . | . . . . . . . . . . . . . . Recycled Matter . | . . . . . . . . . . . . . . Retrieved Matter . | . . . . . . . . . . . . . . Retrieved Components 14 | . . . . 8 . . 2 . 1 3 . . . Parts Scanalyzed 3 | . . . . . . . . . 3 . . . . Part Schematics Acquired 3 | . . . . . . . . . 3 . . . . Parts Damaged . | . . . . . . . . . . . . . . Bothacking | -11 -10 -10 -9 -9 -9 -9 -6 -6 -6 -6 -6 -6 -6 ------------ Run | Yrd Mat Min Mat Sto Rec Scr Fac Was Fac Ext Cet Arc Hub Used RIF Installer . | . . . . . . . . . . . . . . Robots Hacked 1 | . . . . . . . 1 . . . . . . Non-combat 1 | . . . . . . . 1 . . . . . . Combat . | . . . . . . . . . . . . . . Robot Hacks Applied 1 | . . . . . . . 1 . . . . . . find_chute 1 | . . . . . . . 1 . . . . . . Relay Couplers Released 2 | . . . . 2 . . . . . . . . . Machine Destruction 2 | . . . . 2 . . . . . . . . . Fabnet Peak Effective % . | . . . . . . . . . . . . . . Robots Rewired 15 | . . . . . . . . . . 15 . . . Allies Hacked . | . . . . . . . . . . . . . . Hacks Repelled . | . . . . . . . . . . . . . . Allies | -11 -10 -10 -9 -9 -9 -9 -6 -6 -6 -6 -6 -6 -6 -------- Run | Yrd Mat Min Mat Sto Rec Scr Fac Was Fac Ext Cet Arc Hub Total Allies 32 | . . 3 . . . . 1 . 3 20 5 . . Largest Group 15 | . . 3 3 . . . 1 . 3 15 14 9 6 Highest-Rated Group 731 | . . 40 40 . . . 10 . 87 556 731 572 428 Highest-Rated Ally 159 | . . 16 16 . . . 10 . 29 159 159 96 96 Total Orders 3 | . . . . . . . . . . . 1 . 2 STAY 3 | . . . . . . . . . . . 1 . 2 Ally Attacks 311 | . . . 30 . . . . . 6 124 92 29 30 Total Damage 7171 | . . . 360 . . . . . 110 2253 2184 1076 1188 Kills 36 | . . . 4 . . . . . . 13 12 4 3 Allies Corrupted 1 | . . . . . . . . . . . . . 1 Allies Melted . | . . . . . . . . . . . . . . Intel | -11 -10 -10 -9 -9 -9 -9 -6 -6 -6 -6 -6 -6 -6 ------- Run | Yrd Mat Min Mat Sto Rec Scr Fac Was Fac Ext Cet Arc Hub Active Infowar (turns) 7526 | 84 1344 16 . . . 1919 1015 32 1132 1057 325 238 364 Optics 6082 | . . . . . . 1919 1015 32 1132 1057 325 238 364 Sensors 2298 | . . . . . . . 813 32 953 111 . 30 359 Terrain 140 | 6 134 . . . . . . . . . . . . Seismic 1541 | 84 1344 16 . . . . 97 . . . . . . ECM 1 | . . . . . . . . . 1 . . . . Robot Analysis Total 8 | . 2 . . . . 6 . . . . . . . Derelict Logs Recovered 2 | . . 2 . . . . . . . . . . . Drone Launches . | . . . . . . . . . . . . . . Drone Recoveries . | . . . . . . . . . . . . . . Exploration | -11 -10 -10 -9 -9 -9 -9 -6 -6 -6 -6 -6 -6 -6 ------------- Run | Yrd Mat Min Mat Sto Rec Scr Fac Was Fac Ext Cet Arc Hub Turns Passed 12902 | 162 1344 860 1724 1447 959 2243 1015 32 1132 1057 325 238 364 Spaces Moved 11053 | 68 653 463 817 563 577 1332 1821 75 2232 981 414 182 875 Core 5 | 4 . . . . . . 1 . . . . . . Treads 4439 | 64 653 433 817 563 577 1332 . . . . . . . Legs . | . . . . . . . . . . . . . . Wheels 30 | . . 30 . . . . . . . . . . . Hover 489 | . . . . . . . 489 . . . . . . Flight 6090 | . . . . . . . 1331 75 2232 981 414 182 875 Fastest Speed 23 | 50 160 110 160 160 160 160 26 37 23 23 23 23 23 Average Speed 83 | 153 160 156 160 160 160 165 37 37 27 25 23 23 25 Slowest Speed 250 | 160 160 240 240 160 160 240 250 37 37 102 100 23 100 Overloaded Moves . | . . . . . . . . . . . . . . Propulsion Burnouts . | . . . . . . . . . . . . . . Robots Hopped 37 | . . . . . . . 6 . 13 2 . . 16 Potential Cave-ins . | . . . . . . . . . . . . . . Cave-ins Triggered . | . . . . . . . . . . . . . . Exploration Rate (%) 74 | 4 92 94 77 88 99 89 43 86 57 86 74 83 66 Regions Visited 13 Branch Regions 8 Pre-discovered Areas 13 | . 1 2 1 3 5 . . . 1 . . . . Known Exits Taken 5 | . . . 1 . . . . . 1 1 1 1 . Unknown Exits Taken 6 | 1 1 1 . 1 1 1 . . . . . . . Scrap Searched 7 | . . 1 . . . 6 . . . . . . . Spaces Dug 120 | . 6 10 . 35 . . 19 . 38 6 . . 6 Terrain Destroyed 193 | . 6 10 19 50 . . 20 . 39 43 . . 6 Melee 64 | . . . . . . . 19 . 38 1 . . 6 Projectile 1 | . . . . . . . 1 . . . . . . AOE 127 | . 6 10 19 50 . . . . . 42 . . . Terrain Rammed . | . . . . . . . . . . . . . . Walls Destroyed . | . . . . . . . . . . . . . . Machines Disabled . | . . . . . . . . . . . . . . Actions | -11 -10 -10 -9 -9 -9 -9 -6 -6 -6 -6 -6 -6 -6 --------- Run | Yrd Mat Min Mat Sto Rec Scr Fac Was Fac Ext Cet Arc Hub Total 13778 | 96 853 537 1063 941 597 1372 2068 77 2542 1709 617 357 949 Wait 1449 | . 113 8 64 224 . 17 102 . 138 408 161 155 59 Move 10972 | 67 652 462 816 562 576 1331 1810 74 2208 976 413 181 844 Hop 32 | . . . . . . . 5 . 10 2 . . 15 Pick Up 97 | 4 15 11 21 5 3 7 3 . 13 5 10 . . Fast Attach 77 | 7 1 2 6 4 . 3 28 3 13 6 . 4 . Attach 39 | . . 4 3 2 . . 14 . 7 7 . . 2 Detach 40 | . . 1 1 1 2 2 12 . 7 8 . 4 2 Swap 126 | 2 10 4 25 31 2 1 5 . 20 14 9 1 2 Drop 143 | . 9 11 32 19 4 11 22 . 17 9 9 . . Fire 313 | 16 50 33 89 86 10 . 4 . 9 16 . . . Melee 213 | . . . . . . . 46 . 85 30 15 12 25 Ram . | . . . . . . . . . . . . . . Kick . | . . . . . . . . . . . . . . Crush 17 | . 3 1 6 7 . . . . . . . . . Escape Stasis 91 | . . . . . . . 17 . 15 59 . . . Rewire 169 | . . . . . . . . . . 169 . . . Trap . | . . . . . . . . . . . . . . Miscellaneous . | . . . . . . . . . . . . . . Route ------- -11/Scrapyard -10/Materials (discovered 6 exits: *Mat x3 / *Min x2 / [*Sub]) -10/Mines (discovered 4 exits: *Mat x2 / [*Exi] / [*Sub]) -9/Materials (discovered 5 exits: [*Mat x2] / *Min / *Sto x2) -9/Storage (discovered 2 exits: [*Mat] / *Rec) -9/Recycling (discovered 2 exits: [*Fac] / *Scr) -9/Scraptown (discovered 2 exits: *Fac x2) -6/Factory (discovered 7 exits: *Fac x3 / Low x2 / Ext x2) -6/Waste -6/Factory (discovered 4 exits: Low x2 / *Ext x2) -6/Extension (discovered 2 exits: *Fac / *Cet) -6/Cetus (discovered 2 exits: *Fac / *Arc) -6/Archives (discovered 3 exits: *Fac / *Hub x2) -6/Hub_04(d) (discovered 4 exits: *Fac x4) History --------- Turn | Location | Event 5 | -11/Scrapyard | Discovered new exit (range 16) 163 | -11/Scrapyard | Entered Materials 342 | -10/Materials | Build established: Mutant 452 | -10/Materials | Discovered new exit (range 16) 530 | -10/Materials | Discovered new exit (range 7) 881 | -10/Materials | Discovered new exit (range 15) 1064 | -10/Materials | Discovered new exit (range 10) 1192 | -10/Materials | Discovered new exit (range 16) 1399 | -10/Materials | Discovered new exit (range 10) 1507 | -10/Materials | Entered Mines 1614 | -10/Mines | Learned location of Zion (-6) 1620 | -10/Mines | Discovered new exit (range 5) 1749 | -10/Mines | Core integrity fell below 50% 1758 | -10/Mines | Discovered new exit (range 15) 1784 | -10/Mines | Joined a pair of Derelicts in attacking an 0b10 outpost 1862 | -10/Mines | Received a Rocket Launcher from a helpful Derelict 1926 | -10/Mines | Found the Drone Emporium 1935 | -10/Mines | Found Prototype Device 2145 | -10/Mines | Build established: Scavenger-Mutant 2239 | -10/Mines | Discovered new exit (range 16) 2308 | -10/Mines | Assisted by bots powering up and referring to "LRC-V3" 2320 | -10/Mines | Deemed a non-threat by the Exiles lab entrance 2320 | -10/Mines | Discovered new exit (range 5) 2367 | -10/Mines | Entered Materials 2367 | -9/Materials | Accompanied by 3 allies 2367 | -9/Materials | Evolved 2 slots: Propulsion x1, Utility x1 2529 | -9/Materials | Central database locked down 2827 | -9/Materials | Discovered new exit (range 15) 2958 | -9/Materials | Identified exit to Mines 2958 | -9/Materials | Identified exit to Storage 3243 | -9/Materials | Discovered new exit (range 16) 3944 | -9/Materials | Build established: Mutant 4091 | -9/Materials | Entered Storage 4450 | -9/Storage | Garrison activated, responded to threat 4868 | -9/Storage | Discovered new exit (range 17) 4891 | -9/Storage | First assault squad dispatched 5344 | -9/Storage | Used back door to open Recycling access 5344 | -9/Storage | Discovered new exit (range 5) 5429 | -9/Storage | Learned 2 Materials zone layouts 5469 | -9/Storage | Learned Materials trap positions 5509 | -9/Storage | Learned location of 2 exits from Materials 5538 | -9/Storage | Entered Recycling 5593 | -9/Recycling | Build established: Scavenger-Mutant 5710 | -9/Recycling | Discovered new exit (range 8) 5730 | -9/Recycling | Scanned before Scraplab entrance 6246 | -9/Recycling | Learned Materials trap positions 6393 | -9/Recycling | Learned location of 2 exits from Materials 6477 | -9/Recycling | Entered Scraplab 6490 | -9/Recycling | Discovered new exit (range 4) 6497 | -9/Recycling | Entered Scraptown 6497 | -9/Scraptown | System corruption cleaned by C-Scrubber 7022 | -9/Scraptown | Discovered new exit (range 11) 7120 | -9/Scraptown | Visited SPCMW 7160 | -9/Scraptown | Visited Science Testing Area 7182 | -9/Scraptown | Visited The Evicted 7192 | -9/Scraptown | Visited Awakened 7241 | -9/Scraptown | Visited UFD Registry 7241 | -9/Scraptown | Registered with UFD as "Matrixform" 7270 | -9/Scraptown | Visited Assassins FH 7296 | -9/Scraptown | Visited Cyclists 7307 | -9/Scraptown | Entered Cyclist Reading Room 7352 | -9/Scraptown | Visited Comm Corps 7579 | -9/Scraptown | Received an X-ray algorithm 7585 | -9/Scraptown | Visited LU-1G1's Boring Crew 7616 | -9/Scraptown | Visited Scrapoid Research Area 7643 | -9/Scraptown | Visited Abandonware Association 7659 | -9/Scraptown | Learned abandonware demo "ERRANTS.EXE" 7659 | -9/Scraptown | Learned abandonware demo "REBOOT5.EXE" 7798 | -9/Scraptown | Visited Junk Cannon Lab 7806 | -9/Scraptown | Found Prototype Special Weapon 7806 | -9/Scraptown | Identified Junk Cannon 8069 | -9/Scraptown | Visited DA-N13 Charitable Foundation 8075 | -9/Scraptown | Found DCF Scrap (30 items) 8129 | -9/Scraptown | Visited Research Penetration Think Tank 8156 | -9/Scraptown | Visited Analyses Database 8193 | -9/Scraptown | Visited Chapter 10 8228 | -9/Scraptown | Visited Curators Association 8263 | -9/Scraptown | Visited Scrap Suit Storage 8542 | -9/Scraptown | Discovered new exit (range 3) 8658 | -9/Scraptown | Met Optimus 8658 | -9/Scraptown | Accepted into 0bPrime 8740 | -9/Scraptown | Entered Factory 8740 | -6/Factory | Evolved 6 slots: Propulsion x2, Utility x4 8755 | -6/Factory | Identified Decoy Drone Bay 8955 | -6/Factory | Identified exit to Lower Caves 8955 | -6/Factory | Identified exit to Extension 9028 | -6/Factory | Spotted B-75 Beast 9115 | -6/Factory | Repaired Imp. Flight Unit 9155 | -6/Factory | Lost 3 parts (2n1u) 9352 | -6/Factory | Discovered new exit (range 21) 9382 | -6/Factory | Identified exit to Factory 9546 | -6/Factory | Discovered exit to Factory (range 22) 9585 | -6/Factory | Discovered exit to Factory (range 12) 9755 | -6/Factory | Sucked down chute 9755 | -6/Factory | Entered Waste 9762 | -6/Waste | Spotted C-40 Crusher 9762 | -6/Waste | Spotted C-40 Crusher 9770 | -6/Waste | EMP discharged 9770 | -6/Waste | System corruption reached 10% 9770 | -6/Waste | Spotted C-40 Crusher 9772 | -6/Waste | Spotted C-40 Crusher 9776 | -6/Waste | Spotted C-40 Crusher 9779 | -6/Waste | Spotted C-40 Crusher 9784 | -6/Waste | Discovered new exit (range 10) 9787 | -6/Waste | Identified exit to Factory 9787 | -6/Waste | Entered Factory 9815 | -6/Factory | Build established: Hacker-Scout 10226 | -6/Factory | Core integrity fell below 50% 10572 | -6/Factory | Hacking Suite fried by hacking feedback 10650 | -6/Factory | Build established: Scout 10654 | -6/Factory | Loaded intel: 8 recycling unit locations 10665 | -6/Factory | Learned location of Protoforge (-2) 10708 | -6/Factory | Spotted B-75 Beast 10919 | -6/Factory | Entered Extension 11010 | -6/Extension | Spotted B-75 Beast 11312 | -6/Extension | Repaired Cld. Cesium-ion Thruster 11333 | -6/Extension | Rescued a captive Derelict 11334 | -6/Extension | Rescued a captive Derelict 11342 | -6/Extension | Rescued a captive Derelict 11350 | -6/Extension | Rescued a captive Derelict 11351 | -6/Extension | Rescued a captive Derelict 11579 | -6/Extension | Spotted B-75 Beast 11604 | -6/Extension | Allies destroyed B-75 Beast 11616 | -6/Extension | Allies destroyed B-75 Beast 11780 | -6/Extension | Lost 3 allies 11837 | -6/Extension | Rescued A7 11842 | -6/Extension | Attached CPS modules to A7. 11896 | -6/Extension | Discovered exit to Factory (range 14) 11896 | -6/Extension | Discovered new exit (range 9) 11905 | -6/Extension | Identified exit to Cetus 11976 | -6/Extension | Entered Cetus 11976 | -6/Cetus | Accompanied by 14 allies (A7) 11978 | -6/Cetus | Spotted Cetus Guard 11978 | -6/Cetus | Spotted Cetus Guard 11979 | -6/Cetus | Allies destroyed Cetus Guard 11979 | -6/Cetus | Spotted Cetus Guard 11981 | -6/Cetus | Acquired a Cetus Manufacturing Module code from A7 11981 | -6/Cetus | Allies destroyed Cetus Guard 11983 | -6/Cetus | Spotted Cetus Guard 12044 | -6/Cetus | Build established: Commander-Sprinter 12057 | -6/Cetus | Escorted A7 to Cetus Mainframe 12059 | -6/Cetus | Started Cetus Manufacturing Module 12060 | -6/Cetus | Discovered new exit (range 21) 12084 | -6/Cetus | Manufactured an Enhanced Grunt 12088 | -6/Cetus | Spotted Cetus Guard 12088 | -6/Cetus | Spotted Cetus Guard 12088 | -6/Cetus | Spotted Cetus Guard 12088 | -6/Cetus | Spotted Cetus Guard 12088 | -6/Cetus | Discovered exit to Factory (range 21) 12109 | -6/Cetus | Manufactured an Enhanced Grunt 12113 | -6/Cetus | Allies destroyed Cetus Guard 12114 | -6/Cetus | Core integrity fell below 20% 12121 | -6/Cetus | Allies destroyed Cetus Guard 12122 | -6/Cetus | Allies destroyed Cetus Guard 12134 | -6/Cetus | Manufactured an Enhanced Grunt 12135 | -6/Cetus | Allies destroyed Cetus Guard 12142 | -6/Cetus | Met Revision 17 12159 | -6/Cetus | Manufactured an Enhanced Grunt 12166 | -6/Cetus | Lost 7 allies 12184 | -6/Cetus | Manufactured an Enhanced Grunt 12202 | -6/Cetus | Murdered A7 12205 | -6/Cetus | Extracted ID and sensor layout for unrecognized location from A7's data core 12207 | -6/Cetus | Identified exit to Archives 12227 | -6/Cetus | Found Prototype Protection 12227 | -6/Cetus | Identified Med. Regenerative Plating 12301 | -6/Cetus | Entered Archives 12301 | -6/Archives | Accompanied by 9 allies 12331 | -6/Archives | Discovered new exit (range 22) 12361 | -6/Archives | Discovered exit to Factory (range 14) 12422 | -6/Archives | Discovered new exit (range 15) 12515 | -6/Archives | Identified exit to Hub_04(d) 12539 | -6/Archives | Entered Hub_04(d) 12539 | -6/Hub_04(d) | Accompanied by 6 allies 12848 | -6/Hub_04(d) | Network Hub disabled 12851 | -6/Hub_04(d) | Network Hub disabled 12853 | -6/Hub_04(d) | Spotted B-75 Beast 12866 | -6/Hub_04(d) | Network Hub disabled 12867 | -6/Hub_04(d) | Network Hub disabled 12900 | -6/Hub_04(d) | Spotted Lightning 12901 | -6/Hub_04(d) | Spotted Lightning 12901 | -6/Hub_04(d) | Spotted Lightning 12903 | -6/Hub_04(d) | Destroyed by H-66 Slayer with Gauss Rifle Last Messages --------------- Investigation squad. 12866_ Imp. Cesium-ion Thruster destroyed. 12866_ Terminal disabled. 12866_ U-05 Engineer destroyed. 12867_ Y-54 Guardian system terminally corrupted. 12867_ Connecting with Terminal... 12867_ ALERT: Network intrusion management efficiency at 63%. >>Force(Sabotage) SYSTEM_VULNERABLE[Network Hub] NETWORK_OVERLOAD COORDINATES_RETRIEVED 12867_ ALERT: Suspicious activity at Terminal H012. Dispatching Investigation squad. 12869_ Cld. Cesium-ion Thruster destroyed. 12900_ Penetrated by EMDS Slug. 12901_ O-16 Technician: "IFF HANDSHAKE FAILED. SECURING TERMINAL." 12902_ Adv. Sensor Array destroyed. 12902_ Penetrated by EMDS Slug. 12902_ Com. Particle Reactor destroyed. 12903_ Penetrated by Slug. Map ----- +----------------------------------------------------+ | ?????????????????????????????????????????????????? | | ?????????????????????????????????????????????????? | | ?????????????????????????????????????????????????? | | ####?????????????????????????????????????????????? | | #?????????????????????????????????????????????? | | #?????????????????????????????????????????????? | | #?????????????????????????????????########????? | | !#?????????????????????????????????# #????? | | #?????????????????????????????????#"" " #????? | | #######???????????????????????????#"" " ##???? | | + ????????????????????????????#"" " # #### | | #?????????????????????????????????#G # | | #???????? ????????????????????????#"" " # """ | | + #???""???????????????????????#"" " # | | ######???"" ??##########??????????#"" " # """ | | ####?????????" "?# #??????????# # | | ?????????????? #[ #??????????# " " # | | ??????????????? # #??????????# " " # ]]] | | ???????????????? /o ! h/??????????# " " #??]] | | ? ??????#h #??????????# #???? | | ######### ??????# h #??????????##+#+######## | | ????????###+?????# #?????????### | | ??????????#??????# #?????????+ | | ????#######+###### #?????????### | | ????# ! ## i #???????????# ### #### | | ????# ##h @#???????????# ###+#### | | ????# ## g #?????????? ## | | ????#%"""" """" ## #????